bitfinex-derivatives/quotes_BTCF0:USTF0_20230401
["timestamp","ask_amount","ask_price","bid_price","bid_amount"]
[1680368007039,0.4,28332.0,28319.0,0.3222]
[1680368007336,1.25116765,28334.0,28313.0,0.19162016]
[1680368007337,0.0874,28319.0,28313.0,0.19162016]
[1680368007535,0.3884,28315.0,28314.0,0.26271989]
[1680368007739,0.1751,28315.0,28314.0,0.2207183]
[1680368007940,0.1756,28315.0,28312.0,0.26271989]
[1680368008133,0.3889,28313.0,28312.0,0.26271989]
[1680368008339,0.3889,28313.0,28309.0,0.08444637]
[1680368008340,0.4,28312.0,28309.0,0.10384588]
[1680368008542,0.4,28307.0,28305.0,0.08444637]
[1680368008747,0.4,28307.0,28300.0,0.49815142]
[1680368008748,0.4,28305.0,28300.0,0.1]
[1680368008944,0.4,28305.0,28300.0,0.14206092]
[1680368008945,0.1764,28301.0,28300.0,0.14206092]
[1680368009147,0.14161874,28301.0,28300.0,0.1]
[1680368009345,0.14161874,28301.0,28298.0,0.04206092]
[1680368009539,0.4771,28299.0,28298.0,0.04206092]
[1680368009838,0.05,28300.0,28298.0,0.3889]
[1680368010038,0.0369112,28309.0,28302.0,0.55]
[1680368010346,0.4,28327.0,28308.0,0.6014]
[1680368010549,0.3007,28328.0,28315.0,0.6014]
[1680368010747,0.05177458,28331.0,28325.0,0.3007]
[1680368010937,0.0882,28328.0,28323.0,0.3007]
[1680368011251,0.3007,28334.0,28327.0,0.4771]
[1680368011444,0.3007,28340.0,28333.0,0.0882]
[1680368011646,0.3007,28340.0,28337.0,0.0875]
[1680368012045,0.3007,28340.0,28339.0,0.0882]
[1680368012346,0.3007,28342.0,28339.0,0.1411]
[1680368012543,0.3007,28342.0,28341.0,0.141]
[1680368012749,0.3007,28342.0,28341.0,0.07607754]
[1680368012945,0.3007,28342.0,28341.0,0.04432199]
[1680368013551,0.3037,28342.0,28341.0,0.04532199]
[1680368014055,0.3007,28342.0,28341.0,0.04432199]
[1680368014249,0.3007,28346.0,28342.0,0.05]
[1680368014453,0.3007,28346.0,28345.0,0.141]
[1680368015042,0.1,28345.0,28341.0,0.001]
[1680368015342,0.4408,28342.0,28341.0,0.001]
[1680368015555,0.1411,28341.0,28334.0,0.3237]
[1680368015751,0.6014,28335.0,28330.0,0.1411]
[1680368016056,0.3007,28331.0,28330.0,0.1411]
[1680368016253,0.3007,28335.0,28330.0,0.1411]
[1680368016458,0.3007,28335.0,28334.0,0.1411]
[1680368016659,0.7,28346.0,28334.0,0.1411]
[1680368016660,0.3007,28340.0,28334.0,0.1411]
[1680368016961,0.29947136,28340.0,28337.0,0.1411]
[1680368017353,0.29947136,28340.0,28338.0,0.05]
[1680368017750,0.29947136,28340.0,28334.0,1.2603]
[1680368017951,0.3007,28341.0,28337.0,0.3007]
[1680368018459,0.3007,28342.0,28338.0,0.05]
[1680368018758,0.3007,28348.0,28341.0,0.2823]
[1680368019452,0.3007,28345.0,28342.0,0.05]
[1680368019654,0.3007,28343.0,28341.0,0.015]
[1680368020050,0.3007,28343.0,28341.0,0.028]
[1680368021157,0.3007,28343.0,28341.0,0.056]
[1680368021347,0.05,28342.0,28341.0,0.056]
[1680368022556,0.3323,28342.0,28341.0,0.028]
[1680368023755,0.3323,28342.0,28328.0,0.55]
[1680368023756,0.4,28341.0,28328.0,0.55]
[1680368023956,0.3007,28336.0,28328.0,0.55]
[1680368024157,0.3007,28333.0,28329.0,0.05]
[1680368024559,0.3007,28333.0,28328.0,0.55]
[1680368024859,0.3007,28333.0,28329.0,0.05]
[1680368026756,0.3017,28333.0,28329.0,0.076]
[1680368027261,0.3017,28333.0,28329.0,0.026]
[1680368027558,0.3007,28330.0,28329.0,0.026]
[1680368029062,0.3017,28330.0,28329.0,0.026]
[1680368030254,0.3017,28330.0,28329.0,0.076]
[1680368032560,0.001,28330.0,28329.0,0.076]
[1680368034758,0.3017,28330.0,28329.0,0.026]
[1680368035155,0.001,28330.0,28329.0,0.076]
[1680368035460,0.3007,28338.0,28331.0,0.55]
[1680368035970,0.3007,28338.0,28332.0,0.05]
[1680368036465,0.3017,28338.0,28332.0,0.05]
[1680368037468,0.3007,28335.0,28332.0,0.078]
[1680368037665,0.3007,28335.0,28332.0,0.359]
[1680368038470,0.3007,28338.0,28332.0,0.359]
[1680368038672,0.3007,28338.0,28336.0,0.2819]
[1680368038968,1.1003,28342.0,28336.0,0.8319]
[1680368039164,0.3007,28342.0,28337.0,0.05]
[1680368039364,0.3007,28342.0,28337.0,0.3507]
[1680368039564,0.3007,28342.0,28337.0,0.05]
[1680368040068,0.3007,28342.0,28337.0,0.078]
[1680368040275,1.1003,28347.0,28337.0,0.3787]
[1680368040276,0.3007,28344.0,28337.0,0.3787]
[1680368040567,0.3007,28344.0,28337.0,0.078]
[1680368040771,0.3007,28341.0,28337.0,0.078]
[1680368041070,0.3007,28341.0,28337.0,0.028]
[1680368041071,0.3007,28338.0,28337.0,0.028]
[1680368041871,0.05,28340.0,28337.0,0.028]
[1680368042074,0.3007,28338.0,28337.0,0.078]
[1680368042371,0.3007,28338.0,28337.0,0.028]
[1680368042776,0.3007,28338.0,28337.0,0.078]
[1680368043374,0.3007,28338.0,28337.0,0.028]
[1680368044176,0.3003667,28338.0,28337.0,0.028]
[1680368046471,0.5806,28345.0,28337.0,0.028]
[1680368046771,0.3007,28342.0,28337.0,0.24856813]
[1680368046974,0.3007,28345.0,28338.0,0.52126813]
[1680368047167,0.3007,28345.0,28339.0,0.05]
[1680368047377,0.3007,28342.0,28339.0,0.05]
[1680368048475,0.3007,28345.0,28339.0,0.078]
[1680368048876,0.3007,28345.0,28340.0,0.2823]
[1680368049277,0.3007,28345.0,28341.0,0.05]
[1680368050682,0.3007,28345.0,28340.0,0.2823]
[1680368050979,0.3007,28345.0,28341.0,0.05]
[1680368051482,0.3007,28345.0,28341.0,0.078]
[1680368053081,0.3007,28345.0,28341.0,0.028]
[1680368055879,0.3007,28342.0,28341.0,0.028]
[1680368057878,0.3007,28342.0,28341.0,0.03234805]
[1680368058277,0.3007,28342.0,28341.0,0.00434805]
[1680368058581,0.3007,28342.0,28341.0,0.028]
[1680368058779,0.3007,28345.0,28341.0,0.028]
[1680368058976,0.3007,28345.0,28342.0,0.05]
[1680368059576,0.3007,28345.0,28341.0,0.078]
[1680368060991,0.3007,28345.0,28342.0,0.05]
[1680368061481,0.3007,28345.0,28341.0,0.028]
[1680368061689,0.3007,28342.0,28341.0,0.028]
[1680368062085,0.3007,28342.0,28338.0,0.09202941]
[1680368062388,0.3007,28342.0,28341.0,0.028]
[1680368063082,0.3007,28342.0,28338.0,0.12002941]
[1680368063283,0.3007,28342.0,28339.0,0.22055144]
[1680368063484,0.3007,28342.0,28340.0,0.05]
[1680368064190,0.3007,28342.0,28341.0,0.028]
[1680368064582,0.3007,28342.0,28340.0,0.05]
[1680368064882,0.3007,28342.0,28340.0,0.078]
[1680368065084,0.3007,28342.0,28340.0,0.05]
[1680368065384,0.3007,28342.0,28341.0,0.028]
[1680368065587,0.3007,28342.0,28340.0,0.05]
[1680368065785,0.3007,28342.0,28340.0,0.028]
[1680368066884,0.3007,28342.0,28341.0,0.028]
[1680368067083,0.35420803,28345.0,28341.0,0.028]
[1680368067289,0.3007,28342.0,28340.0,0.028]
[1680368067991,0.3007,28342.0,28341.0,0.028]
[1680368068395,0.3007,28342.0,28340.0,0.028]
[1680368068694,0.3007,28342.0,28341.0,0.22054962]
[1680368068893,0.3007,28342.0,28340.0,0.028]
[1680368069391,0.35420803,28345.0,28340.0,0.028]
[1680368069595,0.35420803,28345.0,28341.0,0.22054419]
[1680368069785,0.35420803,28345.0,28342.0,0.05]
[1680368070194,0.35420803,28345.0,28341.0,0.078]
[1680368070392,0.35420803,28345.0,28341.0,0.024]
[1680368070794,0.35420803,28345.0,28339.0,0.05]
[1680368070992,0.35420803,28345.0,28342.0,0.024]
[1680368071388,0.35420803,28345.0,28341.0,0.074]
[1680368071589,0.3007,28345.0,28341.0,0.074]
[1680368072386,0.3007,28345.0,28342.0,0.22054126]
[1680368072586,0.3007,28345.0,28343.0,0.05]
[1680368073093,0.3007,28345.0,28344.0,0.00416765]
[1680368074096,0.30063334,28345.0,28344.0,0.028]
[1680368075686,0.05,28347.0,28344.0,0.028]
[1680368075994,0.6014,28347.0,28344.0,0.028]
[1680368076201,0.8813,28347.0,28344.0,0.028]
[1680368076892,0.05,28346.0,28344.0,0.028]
[1680368078396,0.05,28346.0,28344.0,0.017]
[1680368078596,0.05,28346.0,28345.0,0.00416782]
[1680368078798,0.05,28346.0,28344.0,0.017]
[1680368079298,0.05,28346.0,28345.0,0.00416783]
[1680368079500,0.05,28346.0,28345.0,0.02816783]
[1680368079697,0.05,28346.0,28345.0,0.024]
[1680368079897,0.05,28346.0,28344.0,0.024]
[1680368080299,0.6014,28347.0,28345.0,0.00416786]
[1680368080998,0.05,28346.0,28345.0,0.00416786]
[1680368081201,0.05,28346.0,28345.0,0.03216786]
[1680368081896,0.05,28346.0,28345.0,0.02816786]
[1680368082093,0.6014,28347.0,28345.0,0.02816786]
[1680368082299,0.6014,28347.0,28345.0,0.03216786]
[1680368082495,0.05,28346.0,28345.0,0.03216786]
[1680368084093,0.3888,28347.0,28345.0,0.03216786]
[1680368085297,0.3888,28347.0,28345.0,0.02816786]
[1680368086496,0.42701808,28352.0,28346.0,0.1763]
[1680368086696,0.3007,28352.0,28351.0,0.0881]
[1680368086898,0.3007,28352.0,28351.0,0.1763]
[1680368087193,0.3007,28356.0,28351.0,0.1763]
[1680368087503,0.3007,28356.0,28354.0,0.0882]
[1680368087696,0.3007,28356.0,28355.0,0.05]
[1680368087898,0.3007,28356.0,28355.0,0.0537001]
[1680368088102,0.3007,28356.0,28355.0,0.05]
[1680368088300,0.3007,28356.0,28355.0,0.05370011]
[1680368089101,0.30063334,28356.0,28355.0,0.05370011]
[1680368089300,0.30063334,28356.0,28355.0,0.00370011]
[1680368089701,0.7996,28360.0,28355.0,0.1764]
[1680368089904,0.3007,28361.0,28358.0,0.0882]
[1680368091806,0.3007,28361.0,28358.0,0.0922]
[1680368092195,0.0882,28359.0,28358.0,0.004]
[1680368092801,0.1382,28359.0,28358.0,0.004]
[1680368093409,0.1382,28359.0,28358.0,0.011]
[1680368093911,0.1382,28359.0,28358.0,0.001]
[1680368094113,0.138,28359.0,28358.0,0.001]
[1680368094307,0.088,28359.0,28358.0,0.001]
[1680368094509,0.138,28359.0,28358.0,0.001]
[1680368094709,0.088,28359.0,28358.0,0.001]
[1680368095707,0.088,28359.0,28358.0,0.004]
[1680368096107,0.088,28359.0,28358.0,0.017]
[1680368096308,0.088,28359.0,28358.0,0.0196352]
[1680368096909,0.3007,28360.0,28358.0,0.1078352]
[1680368097314,0.3007,28360.0,28358.0,0.1052]
[1680368098315,0.3007,28360.0,28359.0,0.1379]
[1680368098703,0.3007,28360.0,28359.0,0.14047075]
[1680368099417,0.3007,28360.0,28359.0,0.22867075]
[1680368099611,0.3007,28360.0,28359.0,0.23967075]
[1680368099914,0.3007,28361.0,28359.0,0.23967075]
[1680368100112,0.3007,28365.0,28360.0,0.2264]
[1680368100303,0.3007,28365.0,28364.0,0.0881]
[1680368100511,0.35410761,28365.0,28364.0,0.1381]
[1680368100707,0.35410761,28365.0,28364.0,0.0881]
[1680368101310,0.3007,28365.0,28364.0,0.0881]
[1680368102717,0.3007,28365.0,28364.0,0.0921]
[1680368104219,0.30063334,28365.0,28364.0,0.0921]
[1680368104413,0.35063334,28365.0,28364.0,0.004]
[1680368104718,0.43873334,28365.0,28364.0,0.004]
[1680368106613,0.35063334,28365.0,28364.0,0.004]
[1680368107209,0.38883334,28365.0,28364.0,0.004]
[1680368108608,0.38883334,28365.0,28361.0,0.0881]
[1680368108816,0.3007,28362.0,28361.0,0.0881]
[1680368109014,0.3889,28362.0,28356.0,0.3291]
[1680368109208,0.6014,28357.0,28356.0,0.3291]
[1680368109412,0.6014,28357.0,28353.0,0.0881]
[1680368109711,0.3007,28354.0,28353.0,0.0881]
[1680368111222,0.3007,28354.0,28353.0,0.0991]
[1680368111519,0.3007,28354.0,28353.0,0.1161]
[1680368114723,0.3007,28354.0,28353.0,0.11837909]
[1680368116524,0.3007,28356.0,28353.0,0.11837909]
[1680368116720,0.3007,28356.0,28355.0,0.0882]
[1680368117125,0.4765,28356.0,28353.0,0.03027909]
[1680368117316,0.3889,28354.0,28353.0,0.028]
[1680368118628,0.3889,28354.0,28353.0,0.001]
[1680368120423,0.3889,28354.0,28353.0,0.002]
[1680368120818,0.3889,28354.0,28346.0,0.3984]
[1680368121018,0.05,28355.0,28353.0,0.00337071]
[1680368121219,0.6895,28354.0,28353.0,0.001]
[1680368121422,0.6895,28354.0,28353.0,0.002]
[1680368122120,0.05,28353.0,28346.0,0.39687311]
[1680368122429,0.6894,28347.0,28346.0,0.30867311]
[1680368122628,0.6894,28347.0,28343.0,0.13016982]
[1680368122830,0.3007,28344.0,28343.0,0.13016982]
[1680368123023,0.28958691,28344.0,28343.0,0.13016982]
[1680368123328,0.28958691,28344.0,28343.0,0.35066833]
[1680368123930,0.28958691,28344.0,28343.0,0.37866833]
[1680368124327,0.28958691,28344.0,28343.0,0.35066833]
[1680368124627,0.28958691,28344.0,28343.0,0.37466833]
[1680368124830,0.28958691,28344.0,28343.0,0.28676833]
[1680368125429,0.28958691,28344.0,28343.0,0.30756443]
[1680368125629,0.28958691,28344.0,28343.0,0.24449851]
[1680368125831,0.28958691,28344.0,28343.0,0.29449851]
[1680368126022,0.28958691,28344.0,28343.0,0.27049851]
[1680368126229,0.28958691,28344.0,28343.0,0.29849851]
[1680368126429,0.28958691,28344.0,28343.0,0.36156443]
[1680368126825,0.28958691,28344.0,28343.0,0.24849851]
[1680368127027,0.28958691,28344.0,28343.0,0.38639851]
[1680368127222,0.28958691,28344.0,28343.0,0.33639851]
[1680368127426,0.28958691,28344.0,28343.0,0.39946443]
[1680368129435,0.3885,28347.0,28343.0,0.39946443]
[1680368129628,0.3885,28347.0,28344.0,0.26264727]
[1680368129834,0.3885,28347.0,28345.0,0.05]
[1680368130635,0.3885,28347.0,28345.0,0.09214876]
[1680368130836,0.3885,28347.0,28345.0,0.06614876]
[1680368131536,0.0878,28346.0,28345.0,0.024]
[1680368131738,0.1378,28346.0,28345.0,0.024]
[1680368132433,0.4385,28346.0,28345.0,0.028]
[1680368132838,0.4385,28346.0,28341.0,0.04214876]
[1680368133027,0.3888,28342.0,28341.0,0.04214876]
[1680368133431,0.3888,28342.0,28341.0,0.26267279]
[1680368133632,0.3888,28342.0,28341.0,0.04214876]
[1680368134532,0.3888,28342.0,28341.0,0.07014876]
[1680368135535,0.3888,28342.0,28341.0,0.028]
[1680368136932,0.4765,28342.0,28341.0,0.028]
[1680368142241,0.4763,28342.0,28341.0,0.028]
[1680368142835,0.4763,28342.0,28341.0,0.03085213]
[1680368143038,0.4763,28342.0,28341.0,0.028]
[1680368143233,0.4763,28342.0,28341.0,0.03085213]
[1680368147039,0.3886,28342.0,28341.0,0.03085213]
[1680368155439,0.3007,28342.0,28341.0,0.03085213]
[1680368155639,0.3007,28342.0,28341.0,0.25138606]
[1680368157139,0.3007,28342.0,28341.0,0.24738606]
[1680368157745,0.3007,28342.0,28341.0,0.25138606]
[1680368158145,0.3007,28343.0,28341.0,0.25138606]
[1680368158343,0.3007,28343.0,28341.0,0.03085213]
[1680368159145,0.1377,28342.0,28341.0,0.03085213]
[1680368159449,0.4384,28342.0,28341.0,0.03085213]
[1680368160046,0.4384,28342.0,28341.0,0.02685213]
[1680368160548,0.3884,28342.0,28341.0,0.03085213]
[1680368160850,0.3884,28342.0,28341.0,0.25138875]
[1680368161546,0.3884,28342.0,28341.0,0.03085213]
[1680368162538,0.3884,28342.0,28341.0,0.25139251]
[1680368163953,0.3884,28342.0,28341.0,0.03085213]
[1680368165045,0.3884,28342.0,28341.0,0.25139781]
[1680368165846,0.3884,28342.0,28341.0,0.03085213]
[1680368173169,0.6891,28342.0,28341.0,0.03085213]
[1680368173669,0.6891,28342.0,28341.0,0.03076148]
[1680368175966,0.6891,28342.0,28341.0,0.03082148]
[1680368176161,0.6891,28342.0,28337.0,0.01115889]
[1680368176162,1.1106,28342.0,28337.0,0.01115889]
[1680368176370,0.4761,28338.0,28334.0,0.06306592]
[1680368176571,0.3885,28335.0,28334.0,0.06306592]
[1680368176773,0.3885,28335.0,28334.0,0.2205985]
[1680368177670,0.3915,28335.0,28334.0,0.2275985]
[1680368178867,0.5318041,28335.0,28334.0,0.007]
[1680368180767,0.5318041,28335.0,28334.0,0.01010423]
[1680368181075,0.5318041,28335.0,28334.0,0.00269481]
[1680368181274,0.5318041,28335.0,28333.0,0.05]
[1680368181474,0.0877,28334.0,28333.0,0.05]
[1680368182673,0.0877,28334.0,28333.0,0.051]
[1680368183367,0.3067,28335.0,28333.0,0.1392]
[1680368183567,0.3885,28338.0,28333.0,0.1392]
[1680368183568,0.05324642,28336.0,28334.0,0.30807442]
[1680368183769,0.3885,28338.0,28335.0,0.05240378]
[1680368184283,0.35330063,28338.0,28337.0,0.0879]
[1680368184673,0.35630063,28338.0,28337.0,0.1379]
[1680368185575,0.3037,28338.0,28337.0,0.1379]
[1680368185778,0.3007,28341.0,28337.0,0.35845836]
[1680368185973,0.0877,28343.0,28339.0,0.0882]
[1680368186375,0.0877,28343.0,28340.0,0.05]
[1680368186974,0.3007,28344.0,28341.0,0.0882]
[1680368187175,0.3007,28344.0,28342.0,0.05]
[1680368187674,0.3007,28344.0,28341.0,0.0882]
[1680368187975,0.001,28343.0,28341.0,0.0882]
[1680368188481,0.001,28343.0,28342.0,0.05]
[1680368189183,0.3017,28344.0,28342.0,0.053]
[1680368189680,0.3007,28344.0,28343.0,0.00217555]
[1680368190082,0.3017,28344.0,28343.0,0.09007555]
[1680368190577,0.001,28344.0,28343.0,0.09307555]
[1680368194677,0.3017,28344.0,28343.0,0.09307555]
[1680368197088,0.3017,28344.0,28343.0,0.09327555]
[1680368198573,0.3895,28344.0,28343.0,0.00517555]
[1680368198772,0.3895,28344.0,28343.0,0.003]
[1680368199378,0.3895,28344.0,28343.0,0.00480523]
[1680368202790,0.3895,28344.0,28343.0,0.003]
[1680368206382,0.05,28343.0,28335.0,0.08444637]
[1680368206587,0.05,28343.0,28334.0,0.3327]
[1680368206588,0.3007,28336.0,28334.0,0.3327]
[1680368206786,0.3007,28336.0,28333.0,0.17264637]
[1680368207091,0.3007,28336.0,28335.0,0.22056687]
[1680368207289,0.3007,28336.0,28334.0,0.27056687]
[1680368207490,0.3007,28336.0,28335.0,0.05]
[1680368207685,0.3037,28336.0,28335.0,0.27056687]
[1680368207884,0.003,28336.0,28335.0,0.27056687]
[1680368208581,0.003,28336.0,28335.0,0.27156687]
[1680368210687,0.3007,28338.0,28336.0,0.056]
[1680368210988,0.3007,28338.0,28337.0,0.0882]
[1680368211389,0.3007,28338.0,28337.0,0.30874928]
[1680368211581,0.3037,28338.0,28337.0,0.30874928]
[1680368211986,0.3037,28338.0,28337.0,0.35874928]
[1680368212189,0.003,28338.0,28337.0,0.35874928]
[1680368213196,0.003,28338.0,28337.0,0.36174928]
[1680368213895,0.003,28338.0,28337.0,0.31174928]
[1680368216797,0.3918,28338.0,28337.0,0.22054928]
[1680368216990,0.3918,28338.0,28337.0,0.003]
[1680368216991,0.4793,28338.0,28337.0,0.003]
[1680368220288,0.4,28335.0,28324.0,0.08444637]
[1680368220497,0.0882,28326.0,28324.0,0.08444637]
[1680368220696,0.3889,28326.0,28325.0,0.2227998]
[1680368221892,0.0882,28326.0,28325.0,0.2227998]
[1680368222093,0.0882,28326.0,28325.0,0.2727998]
[1680368222301,0.003,28326.0,28325.0,0.3619998]
[1680368222486,0.003,28326.0,28325.0,0.44644617]
[1680368222693,0.003,28326.0,28325.0,0.67995064]
[1680368224197,0.003,28326.0,28325.0,0.3619998]
[1680368224394,0.003,28326.0,28325.0,0.3119998]
[1680368225699,0.003,28326.0,28325.0,0.3619998]
[1680368226903,0.003,28326.0,28325.0,0.2737998]
[1680368227806,0.003,28326.0,28325.0,0.2237998]
[1680368229401,0.003,28326.0,28325.0,0.2737998]
[1680368231704,0.13967802,28330.0,28326.0,0.05]
[1680368231904,0.0882,28334.0,28329.0,0.0882]
[1680368232104,0.0882,28334.0,28330.0,0.05]
[1680368233307,0.0912,28334.0,28330.0,0.05]
[1680368234403,0.3007,28338.0,28333.0,0.4771]
[1680368234708,0.003,28334.0,28333.0,0.3889]
[1680368234909,0.003,28334.0,28333.0,0.4771]
[1680368235110,0.003,28334.0,28333.0,0.69766575]
[1680368235409,0.3037,28338.0,28333.0,1.03646575]
[1680368235611,0.003,28338.0,28337.0,0.0875]
[1680368235798,0.3007,28343.0,28338.0,0.0882]
[1680368236003,0.3007,28343.0,28340.0,0.0882]
[1680368236609,0.3007,28343.0,28341.0,0.05]
[1680368237010,0.0878,28345.0,28341.0,0.1379]
[1680368237804,0.003,28343.0,28341.0,0.1409]
[1680368238508,0.0908,28345.0,28341.0,0.1409]
[1680368238906,0.003,28343.0,28341.0,0.1409]
[1680368240207,0.3007,28343.0,28341.0,0.1409]
[1680368240505,0.0908,28345.0,28341.0,0.1409]
[1680368240905,0.0878,28345.0,28341.0,0.1379]
[1680368241105,0.003,28343.0,28341.0,0.1409]
[1680368241604,0.0908,28345.0,28341.0,0.1409]
[1680368241801,0.0878,28345.0,28341.0,0.1379]
[1680368242006,0.003,28343.0,28341.0,0.1409]
[1680368243206,0.0908,28345.0,28341.0,0.1409]
[1680368243713,0.003,28343.0,28341.0,0.1409]
[1680368244111,0.0908,28345.0,28341.0,0.1409]
[1680368244512,0.0878,28345.0,28341.0,0.1379]
[1680368244710,0.003,28343.0,28341.0,0.1409]
[1680368245008,0.0878,28345.0,28341.0,0.1379]
[1680368245311,0.0908,28345.0,28341.0,0.1409]
[1680368245614,0.3887,28343.0,28342.0,0.00154099]
[1680368245809,0.3887,28343.0,28341.0,0.003]
[1680368246218,0.3887,28343.0,28342.0,0.001541]
[1680368246607,0.3917,28343.0,28342.0,0.001541]
[1680368247412,0.3947,28343.0,28342.0,0.004541]
[1680368249516,0.3897,28343.0,28342.0,0.004541]
[1680368250214,0.3907,28343.0,28342.0,0.004541]
[1680368250614,0.3887,28343.0,28342.0,0.001541]
[1680368250814,0.3917,28343.0,28342.0,0.003]
[1680368251206,0.3917,28343.0,28342.0,0.00454114]
[1680368253922,0.3037,28343.0,28342.0,0.00454114]
[1680368254511,0.003,28343.0,28342.0,0.00454114]
[1680368254711,0.003,28343.0,28342.0,0.14274114]
[1680368255613,0.6014,28346.0,28342.0,0.13974114]
[1680368255814,0.3007,28346.0,28342.0,0.44344114]
[1680368256009,0.3007,28351.0,28345.0,0.3888]
[1680368256214,0.3007,28351.0,28348.0,0.0882]
[1680368257026,0.3007,28351.0,28346.0,0.05]
[1680368257027,0.3889,28351.0,28347.0,0.0879]
[1680368257623,0.05,28350.0,28347.0,0.0875]
[1680368258034,0.05,28350.0,28348.0,0.001]
[1680368258433,0.005,28350.0,28347.0,0.0885]
[1680368258930,0.005,28350.0,28348.0,0.051]
[1680368259131,0.005,28350.0,28349.0,0.0882]
[1680368259425,0.005,28350.0,28349.0,0.1382]
[1680368260225,0.10415781,28353.0,28349.0,0.1382]
[1680368260427,0.005,28350.0,28349.0,0.1392]
[1680368264135,0.005,28350.0,28349.0,0.1447815]
[1680368267236,0.005,28350.0,28349.0,0.0947815]
[1680368276843,0.005,28350.0,28349.0,0.1829815]
[1680368277149,0.005,28350.0,28349.0,0.6032586]
[1680368279146,1.1003,28356.0,28351.0,0.3352]
[1680368279351,1.6516,28361.0,28355.0,0.1757]
[1680368279554,0.3007,28359.0,28357.0,0.0879]
[1680368279851,0.05,28358.0,28357.0,0.0879]
[1680368280050,0.3007,28359.0,28357.0,0.0879]
[1680368280442,0.05,28358.0,28357.0,0.0879]
[1680368280645,0.05,28358.0,28355.0,0.001]
[1680368280847,0.05,28358.0,28348.0,0.0882]
[1680368280848,0.4769,28356.0,28348.0,0.0882]
[1680368281047,0.088,28349.0,28345.0,0.15108512]
[1680368281248,0.088,28349.0,28346.0,0.22048784]
[1680368282049,0.088,28349.0,28347.0,0.05]
[1680368282247,0.35279052,28350.0,28348.0,0.0875]
[1680368282448,0.05209052,28350.0,28349.0,0.05]
[1680368282649,0.05,28351.0,28349.0,0.05]
[1680368282852,0.0882,28352.0,28349.0,0.05]
[1680368283453,0.005,28350.0,28349.0,0.051]
[1680368283653,0.005,28350.0,28349.0,0.001]
[1680368283954,0.1062,28352.0,28349.0,0.051]
[1680368285147,0.005,28350.0,28349.0,0.051]
[1680368285354,0.005,28350.0,28349.0,0.001]
[1680368285550,0.005,28350.0,28348.0,0.0875]
[1680368285858,0.05,28351.0,28349.0,0.001]
[1680368286043,0.05,28351.0,28348.0,0.0875]
[1680368286248,0.005,28350.0,28349.0,0.001]
[1680368286660,0.005,28350.0,28348.0,0.0885]
[1680368286955,0.005,28350.0,28348.0,0.001]
[1680368287550,0.3939,28350.0,28348.0,0.001]
[1680368288353,0.3889,28350.0,28346.0,0.0881]
[1680368288655,0.4766,28347.0,28342.0,0.3001]
[1680368288850,0.4766,28347.0,28340.0,0.15138512]
[1680368288851,0.3885,28344.0,28340.0,0.15138512]
[1680368289055,0.05,28343.0,28341.0,0.22052986]
[1680368289248,0.05,28343.0,28341.0,0.27052986]
[1680368289453,0.3885,28344.0,28342.0,0.22052986]
[1680368289652,0.0878,28344.0,28342.0,0.22052986]
[1680368289960,0.0908,28344.0,28342.0,0.22052986]
[1680368290455,0.0888,28344.0,28342.0,0.22952986]
[1680368290853,0.0888,28344.0,28343.0,0.22052986]
[1680368291657,0.3895,28344.0,28343.0,0.22052986]
[1680368291859,0.3895,28344.0,28343.0,0.22952986]
[1680368292559,0.3895,28344.0,28343.0,0.009]
[1680368294761,0.3895,28344.0,28343.0,0.01344817]
[1680368295863,0.05,28343.0,28336.0,0.06318512]
[1680368296063,0.0882,28338.0,28336.0,0.06318512]
[1680368296359,0.0882,28338.0,28337.0,0.26277731]
[1680368296561,0.0882,28338.0,28337.0,0.31277731]
[1680368296755,0.0882,28338.0,28337.0,0.04220866]
[1680368297963,0.0912,28338.0,28337.0,0.26377423]
[1680368298162,0.0912,28338.0,28337.0,0.04320866]
[1680368299759,0.09114,28338.0,28337.0,0.04320866]
[1680368299959,0.09114,28338.0,28337.0,0.001]
[1680368300162,0.14114,28338.0,28337.0,0.001]
[1680368300865,0.19420951,28338.0,28337.0,0.001]
[1680368301369,0.14420951,28338.0,28337.0,0.001]
[1680368302667,0.19420951,28338.0,28337.0,0.001]
[1680368303068,0.14420951,28338.0,28337.0,0.001]
[1680368303565,0.14420951,28338.0,28337.0,0.00470644]
[1680368303765,0.14420951,28338.0,28337.0,0.001]
[1680368304171,0.19420951,28338.0,28337.0,0.001]
[1680368304370,0.14420951,28338.0,28337.0,0.001]
[1680368304770,0.19420951,28338.0,28337.0,0.001]
[1680368306071,0.19416951,28338.0,28337.0,0.001]
[1680368306268,0.19386951,28338.0,28337.0,0.001]
[1680368307773,0.05,28337.0,28332.0,0.36770866]
[1680368307977,0.088,28334.0,28332.0,0.36770866]
[1680368308271,0.088,28334.0,28332.0,0.04220866]
[1680368308870,0.05,28333.0,28331.0,0.0881]
[1680368309075,0.05,28331.0,28330.0,0.04220866]
[1680368309275,0.138,28331.0,28329.0,0.04220866]
[1680368309572,0.138,28331.0,28330.0,0.00301357]
[1680368309773,0.088,28331.0,28330.0,0.05301357]
[1680368309973,0.091,28331.0,28330.0,0.00301357]
[1680368312983,0.003,28331.0,28330.0,0.09111357]
[1680368314387,0.003,28331.0,28330.0,0.31171237]
[1680368314682,0.003,28331.0,28330.0,0.36171237]
[1680368314884,0.0878,28334.0,28331.0,0.056]